[Event "*** Titled Tuesday Blitz"]
[Site "Chess.com"]
[Date "2018.09.04"]
[Round "1"]
[White "champ2005"]
[Black "Slovak_fighter2000"]
[Result "1-0"]
[WhiteElo "2764"]
[BlackElo "2410"]
[TimeControl "180+2"]
[EndTime "13:44:02 PDT"]
[Termination "champ2005 won by resignation"]

1. e4 {[%clk 0:03:01.4]} 1... e6 {[%clk 0:02:49.8]} 2. d4 {[%clk 0:03:02]} 2...
d5 {[%clk 0:02:51.2]} 3. Nc3 {[%clk 0:03:03.4]} 3... Nf6 {[%clk 0:02:51.8]} 4.
Bg5 {[%clk 0:03:03.6]} 4... Be7 {[%clk 0:02:52.3]} 5. e5 {[%clk 0:03:04.8]} 5...
Nfd7 {[%clk 0:02:53.8]} 6. h4 {[%clk 0:03:06.3]} 6... h6 {[%clk 0:02:54.8]} 7.
Bxe7 {[%clk 0:03:06.4]} 7... Qxe7 {[%clk 0:02:55.6]} 8. Qg4 {[%clk 0:03:05.5]}
8... O-O {[%clk 0:02:56.6]} 9. Nf3 {[%clk 0:02:55.7]} 9... c5 {[%clk 0:02:55.6]}
10. dxc5 {[%clk 0:02:56.4]} 10... Nc6 {[%clk 0:02:55.7]} 11. Qf4 {[%clk
0:02:56.2]} 11... Nxc5 {[%clk 0:02:46.6]} 12. O-O-O {[%clk 0:02:57]} 12... f6
{[%clk 0:02:43.9]} 13. exf6 {[%clk 0:02:55.5]} 13... Qxf6 {[%clk 0:02:45.4]} 14.
Qxf6 {[%clk 0:02:56.1]} 14... Rxf6 {[%clk 0:02:45.5]} 15. Bb5 {[%clk 0:02:57.5]}
15... Bd7 {[%clk 0:02:35]} 16. Rd2 {[%clk 0:02:44.3]} 16... Raf8 {[%clk
0:02:30.6]} 17. Re1 {[%clk 0:02:43.6]} 17... a6 {[%clk 0:02:28.1]} 18. Bxc6
{[%clk 0:02:44]} 18... Bxc6 {[%clk 0:02:30]} 19. Ree2 {[%clk 0:02:42.1]} 19...
Rf4 {[%clk 0:02:04.9]} 20. h5 {[%clk 0:02:34.7]} 20... R4f5 {[%clk 0:01:43.7]}
21. Nd4 {[%clk 0:02:34.2]} 21... Rxh5 {[%clk 0:01:42.8]} 22. b4 {[%clk
0:02:34.6]} 22... Nd7 {[%clk 0:01:08.2]} 23. Rxe6 {[%clk 0:02:33.4]} 23... Ne5
{[%clk 0:01:01.1]} 24. f3 {[%clk 0:02:21.2]} 24... Nc4 {[%clk 0:00:52.7]} 25.
Rd1 {[%clk 0:02:16.7]} 25... Rf6 {[%clk 0:00:49.3]} 26. Rxf6 {[%clk 0:02:14.1]}
26... gxf6 {[%clk 0:00:51.2]} 27. Nce2 {[%clk 0:02:08.8]} 27... Rh2 {[%clk
0:00:50.7]} 28. Nf4 {[%clk 0:02:09.6]} 28... Kf7 {[%clk 0:00:46]} 29. Re1 {[%clk
0:02:02.2]} 29... Ne5 {[%clk 0:00:38.1]} 30. Re2 {[%clk 0:01:52.4]} 30... h5
{[%clk 0:00:31]} 31. Nd3 {[%clk 0:01:41.4]} 31... Nxd3+ {[%clk 0:00:27.5]} 32.
cxd3 {[%clk 0:01:43.3]} 32... Bd7 {[%clk 0:00:25.8]} 33. Kd2 {[%clk 0:01:41.9]}
33... h4 {[%clk 0:00:25.6]} 34. Ke3 {[%clk 0:01:32.8]} 34... h3 {[%clk
0:00:25.2]} 35. gxh3 {[%clk 0:01:34.7]} 35... Rxh3 {[%clk 0:00:23.8]} 36. Rc2
{[%clk 0:01:35]} 36... Ke7 {[%clk 0:00:14.8]} 37. Rc7 {[%clk 0:01:35.2]} 37...
b5 {[%clk 0:00:15.1]} 38. Ra7 {[%clk 0:01:34]} 38... Rh2 {[%clk 0:00:14.9]} 39.
Rxa6 {[%clk 0:01:30.9]} 39... Rb2 {[%clk 0:00:15.7]} 40. a3 {[%clk 0:01:32]}
40... Ra2 {[%clk 0:00:17]} 41. Ne2 {[%clk 0:01:23.4]} 41... Be6 {[%clk
0:00:13.1]} 42. Nf4 {[%clk 0:01:21.1]} 42... Bf7 {[%clk 0:00:14.5]} 43. Ra7+
{[%clk 0:01:21.4]} 43... Kf8 {[%clk 0:00:15.3]} 44. Kd4 {[%clk 0:01:22.6]} 44...
Rf2 {[%clk 0:00:14.5]} 45. Ke3 {[%clk 0:01:21.9]} 45... Ra2 {[%clk 0:00:15.2]}
46. Ra5 {[%clk 0:01:23]} 46... Ke7 {[%clk 0:00:14.4]} 47. Rxb5 {[%clk
0:01:23.4]} 47... Rxa3 {[%clk 0:00:15.4]} 48. Nxd5+ {[%clk 0:01:24.5]} 48... Ke6
{[%clk 0:00:14.7]} 49. Nf4+ {[%clk 0:01:22.8]} 49... Ke7 {[%clk 0:00:14.1]} 50.
Rb7+ {[%clk 0:01:20.8]} 50... Kf8 {[%clk 0:00:14.2]} 51. b5 {[%clk 0:01:21.5]}
51... Rb3 {[%clk 0:00:11.7]} 52. b6 {[%clk 0:01:22.6]} 52... Ke8 {[%clk
0:00:10.6]} 53. Ne2 {[%clk 0:01:16.7]} 53... Bc4 {[%clk 0:00:09.1]} 54. Nc1
{[%clk 0:01:16.6]} 54... Ra3 {[%clk 0:00:08.9]} 55. Kd4 {[%clk 0:01:17.8]} 55...
Be6 {[%clk 0:00:07.8]} 56. Rh7 {[%clk 0:01:17.1]} 56... Ra6 {[%clk 0:00:07.4]}
57. b7 {[%clk 0:01:17.5]} 57... Rb6 {[%clk 0:00:08]} 58. Rh8+ {[%clk 0:01:18.6]}
1-0

[Event "*** Titled Tuesday Blitz"]
[Site "Chess.com"]
[Date "2018.09.04"]
[Round "1"]
[White "JSMastropiero"]
[Black "afgano29"]
[Result "1-0"]
[WhiteElo "2374"]
[BlackElo "2690"]
[TimeControl "180+2"]
[EndTime "13:44:03 PDT"]
[Termination "JSMastropiero won by resignation"]

1. e4 {[%clk 0:03:00.3]} 1... c5 {[%clk 0:02:59.8]} 2. Nc3 {[%clk 0:02:59.7]}
2... Nc6 {[%clk 0:03:00.1]} 3. Bb5 {[%clk 0:02:58.9]} 3... Nd4 {[%clk
0:03:00.3]} 4. Nf3 {[%clk 0:02:58.4]} 4... Nxb5 {[%clk 0:03:00.1]} 5. Nxb5
{[%clk 0:02:59.1]} 5... d5 {[%clk 0:03:00.8]} 6. exd5 {[%clk 0:02:57.5]} 6... a6
{[%clk 0:03:02]} 7. Nc3 {[%clk 0:02:56.2]} 7... Nf6 {[%clk 0:03:03]} 8. d4
{[%clk 0:02:56]} 8... c4 {[%clk 0:02:59.4]} 9. Qe2 {[%clk 0:02:51.6]} 9... Nxd5
{[%clk 0:02:31.2]} 10. Qxc4 {[%clk 0:02:49]} 10... Be6 {[%clk 0:02:30.6]} 11.
Qe2 {[%clk 0:02:26.8]} 11... Nxc3 {[%clk 0:02:23.9]} 12. bxc3 {[%clk 0:02:28.7]}
12... Rc8 {[%clk 0:02:22.1]} 13. Ne5 {[%clk 0:02:14.1]} 13... Rxc3 {[%clk
0:02:17.7]} 14. O-O {[%clk 0:02:12.3]} 14... Qc7 {[%clk 0:02:13.4]} 15. Bf4
{[%clk 0:02:02.7]} 15... Bc4 {[%clk 0:01:57]} 16. Nxc4 {[%clk 0:01:35.1]} 16...
Qxc4 {[%clk 0:01:54.3]} 17. Qe4 {[%clk 0:01:20.1]} 17... Qc6 {[%clk 0:01:49.8]}
18. d5 {[%clk 0:01:19]} 18... Qc4 {[%clk 0:01:49.3]} 19. Qe5 {[%clk 0:01:15.9]}
19... f6 {[%clk 0:01:40.9]} 20. Qb8+ {[%clk 0:01:01.4]} 20... Qc8 {[%clk
0:01:42.2]} 21. Qa7 {[%clk 0:00:59.8]} 21... g5 {[%clk 0:01:41.5]} 22. Be3
{[%clk 0:00:51.2]} 22... Bg7 {[%clk 0:01:30.2]} 23. Rab1 {[%clk 0:00:42.5]}
23... Rc7 {[%clk 0:01:30.4]} 24. c4 {[%clk 0:00:31.9]} 24... O-O {[%clk
0:01:24]} 25. c5 {[%clk 0:00:32]} 25... Rd8 {[%clk 0:00:49.7]} 26. Rfd1 {[%clk
0:00:31.9]} 26... Rcd7 {[%clk 0:00:49.2]} 27. h3 {[%clk 0:00:21.5]} 27... Bf8
{[%clk 0:00:32.7]} 28. Rb6 {[%clk 0:00:17.3]} 28... h6 {[%clk 0:00:26.7]} 29.
Rdb1 {[%clk 0:00:14.4]} 29... Rxd5 {[%clk 0:00:27.4]} 30. Qxb7 {[%clk
0:00:13.9]} 30... Qxb7 {[%clk 0:00:21.8]} 31. Rxb7 {[%clk 0:00:15.1]} 31... e6
{[%clk 0:00:23.1]} 32. c6 {[%clk 0:00:16.1]} 32... Rc8 {[%clk 0:00:24.3]} 33. c7
{[%clk 0:00:15.4]} 33... Rd7 {[%clk 0:00:25.3]} 34. Bb6 {[%clk 0:00:15.2]} 34...
Bd6 {[%clk 0:00:24.8]} 35. Rc1 {[%clk 0:00:12.8]} 35... Kf7 {[%clk 0:00:25.5]}
36. Ra7 {[%clk 0:00:13]} 36... e5 {[%clk 0:00:25.1]} 37. Rxa6 {[%clk 0:00:14.1]}
37... Ke7 {[%clk 0:00:24.8]} 38. Ra7 {[%clk 0:00:14.4]} 38... Bb4 {[%clk
0:00:22.7]} 39. a4 {[%clk 0:00:14.7]} 39... Ba3 {[%clk 0:00:17.9]} 40. Ra1
{[%clk 0:00:14.4]} 40... Bb2 {[%clk 0:00:19]} 41. Rb1 {[%clk 0:00:15.7]} 41...
Bd4 {[%clk 0:00:19.7]} 42. Bxd4 {[%clk 0:00:16]} 42... exd4 {[%clk 0:00:20.8]}
43. Rd1 {[%clk 0:00:15.3]} 43... Ke6 {[%clk 0:00:19.8]} 44. Kf1 {[%clk
0:00:13.6]} 44... Kd5 {[%clk 0:00:19.4]} 45. Ra5+ {[%clk 0:00:14]} 45... Kc4
{[%clk 0:00:19.7]} 46. Ra7 {[%clk 0:00:13.4]} 46... Rcxc7 {[%clk 0:00:20.6]} 47.
Rxc7+ {[%clk 0:00:13.7]} 47... Rxc7 {[%clk 0:00:22.5]} 48. Rc1+ {[%clk
0:00:15.2]} 1-0

[Event "*** Titled Tuesday Blitz"]
[Site "Chess.com"]
[Date "2018.09.04"]
[Round "1"]
[White "arna"]
[Black "JozefKneht"]
[Result "0-1"]
[WhiteElo "2059"]
[BlackElo "2487"]
[TimeControl "180+2"]
[EndTime "13:44:06 PDT"]
[Termination "JozefKneht won by resignation"]

1. e4 {[%clk 0:02:54.8]} 1... e5 {[%clk 0:02:36.9]} 2. Nf3 {[%clk 0:02:46.1]}
2... Nc6 {[%clk 0:02:36.9]} 3. Nc3 {[%clk 0:02:41.4]} 3... Nf6 {[%clk
0:02:36.7]} 4. Be2 {[%clk 0:02:41.3]} 4... Bc5 {[%clk 0:02:35.7]} 5. Nxe5 {[%clk
0:02:41.8]} 5... Nxe5 {[%clk 0:02:32.9]} 6. d4 {[%clk 0:02:41.7]} 6... Bd6
{[%clk 0:02:32.3]} 7. dxe5 {[%clk 0:02:42.4]} 7... Bxe5 {[%clk 0:02:32.9]} 8.
Qd3 {[%clk 0:02:20.6]} 8... O-O {[%clk 0:02:25.4]} 9. Bg5 {[%clk 0:02:01.7]}
9... h6 {[%clk 0:02:25.4]} 10. Bh4 {[%clk 0:02:00.6]} 10... Qe8 {[%clk
0:02:23.3]} 11. f3 {[%clk 0:01:47.3]} 11... d6 {[%clk 0:01:43.1]} 12. O-O-O
{[%clk 0:01:43.9]} 12... Be6 {[%clk 0:01:43]} 13. Kb1 {[%clk 0:01:44.6]} 13...
Nd7 {[%clk 0:01:38.9]} 14. Nd5 {[%clk 0:01:35.6]} 14... Nc5 {[%clk 0:01:34.7]}
15. Qe3 {[%clk 0:01:19.4]} 15... Bxd5 {[%clk 0:01:33.4]} 16. Rxd5 {[%clk
0:01:14.9]} 16... Na4 {[%clk 0:01:20.4]} 17. Bb5 {[%clk 0:00:56.5]} 17... Nc3+
{[%clk 0:01:05.9]} 18. Qxc3 {[%clk 0:00:31]} 18... c6 {[%clk 0:01:05.6]} 19.
Rxe5 {[%clk 0:00:25.8]} 19... dxe5 {[%clk 0:01:05.3]} 20. Bc4 {[%clk 0:00:27]}
20... a5 {[%clk 0:01:01.3]} 21. a4 {[%clk 0:00:16.6]} 21... g5 {[%clk
0:00:48.8]} 22. Bf2 {[%clk 0:00:17.3]} 22... Qe7 {[%clk 0:00:42.8]} 23. Bc5
{[%clk 0:00:15.9]} 23... Qf6 {[%clk 0:00:42.8]} 24. Bxf8 {[%clk 0:00:16.3]}
24... Kxf8 {[%clk 0:00:44.1]} 25. h4 {[%clk 0:00:16.8]} 25... gxh4 {[%clk
0:00:43.5]} 26. Qe3 {[%clk 0:00:17.4]} 26... Rd8 {[%clk 0:00:36.4]} 27. Bd3
{[%clk 0:00:17.6]} 27... Kg7 {[%clk 0:00:35.8]} 28. b3 {[%clk 0:00:17.9]} 28...
Rd4 {[%clk 0:00:35.3]} 29. Qe1 {[%clk 0:00:17.7]} 29... b5 {[%clk 0:00:29.1]}
30. axb5 {[%clk 0:00:17.4]} 30... a4 {[%clk 0:00:28.3]} 31. Kb2 {[%clk
0:00:11.5]} 31... Qd6 {[%clk 0:00:27.6]} 32. Qc3 {[%clk 0:00:09.8]} 32... cxb5
{[%clk 0:00:24.3]} 33. Rxh4 {[%clk 0:00:09]} 33... a3+ {[%clk 0:00:23.4]} 34.
Ka2 {[%clk 0:00:09.2]} 34... b4 {[%clk 0:00:24.3]} 35. Qe1 {[%clk 0:00:09.8]}
35... Qc5 {[%clk 0:00:16.9]} 36. f4 {[%clk 0:00:09.6]} 36... Rxd3 {[%clk
0:00:16.2]} 37. Rg4+ {[%clk 0:00:09.5]} 37... Kh7 {[%clk 0:00:12.3]} 38. Kb1
{[%clk 0:00:03]} 38... Re3 {[%clk 0:00:10.2]} 39. Qh1 {[%clk 0:00:02.6]} 39...
a2+ {[%clk 0:00:08.7]} 40. Kxa2 {[%clk 0:00:02.5]} 40... Qxc2+ {[%clk
0:00:09.4]} 41. Ka1 {[%clk 0:00:04.2]} 41... Qc3+ {[%clk 0:00:10.4]} 42. Kb1
{[%clk 0:00:05.7]} 42... Qxb3+ {[%clk 0:00:11.5]} 43. Kc1 {[%clk 0:00:07.1]}
43... Qc3+ {[%clk 0:00:12.7]} 44. Kb1 {[%clk 0:00:06.8]} 44... Re1+ {[%clk
0:00:13.7]} 0-1

[Event "*** Titled Tuesday Blitz"]
[Site "Chess.com"]
[Date "2018.09.04"]
[Round "1"]
[White "lexisvar"]
[Black "JonahWillow"]
[Result "1-0"]
[WhiteElo "2431"]
[BlackElo "2730"]
[TimeControl "180+2"]
[EndTime "13:44:36 PDT"]
[Termination "lexisvar won by resignation"]

1. e4 {[%clk 0:03:01.9]} 1... c5 {[%clk 0:03:00.6]} 2. Nf3 {[%clk 0:03:02.4]}
2... e6 {[%clk 0:03:01.6]} 3. d4 {[%clk 0:03:03.4]} 3... cxd4 {[%clk 0:03:03.5]}
4. Nxd4 {[%clk 0:03:04.7]} 4... Nc6 {[%clk 0:03:05.1]} 5. Nc3 {[%clk 0:03:05.8]}
5... Qc7 {[%clk 0:03:06.4]} 6. f4 {[%clk 0:03:04.8]} 6... a6 {[%clk 0:02:59.6]}
7. Nb3 {[%clk 0:03:02.1]} 7... d6 {[%clk 0:02:59.5]} 8. Bd3 {[%clk 0:03:01.4]}
8... Nf6 {[%clk 0:03:00.2]} 9. Qe2 {[%clk 0:03:02]} 9... Be7 {[%clk 0:02:59.4]}
10. Bd2 {[%clk 0:03:03.2]} 10... b5 {[%clk 0:02:57]} 11. a3 {[%clk 0:03:03.6]}
11... Nd7 {[%clk 0:02:55]} 12. O-O {[%clk 0:03:01.2]} 12... O-O {[%clk
0:02:55.9]} 13. Rae1 {[%clk 0:02:58.2]} 13... Bh4 {[%clk 0:02:45]} 14. Rd1
{[%clk 0:02:56.3]} 14... Bf6 {[%clk 0:02:44]} 15. Qh5 {[%clk 0:02:44.6]} 15...
Bb7 {[%clk 0:02:38.7]} 16. Qh3 {[%clk 0:02:34.5]} 16... g6 {[%clk 0:02:33.4]}
17. f5 {[%clk 0:02:34.5]} 17... Rfe8 {[%clk 0:01:37.2]} 18. fxe6 {[%clk
0:02:32.1]} 18... fxe6 {[%clk 0:01:39.1]} 19. Ne2 {[%clk 0:02:07.7]} 19... Bg7
{[%clk 0:01:34.1]} 20. Nf4 {[%clk 0:02:07.9]} 20... Nf8 {[%clk 0:01:35.5]} 21.
c3 {[%clk 0:01:56.2]} 21... Ne5 {[%clk 0:01:34.3]} 22. Bb1 {[%clk 0:01:56.9]}
22... Rac8 {[%clk 0:01:31.6]} 23. Nd4 {[%clk 0:01:57.8]} 23... Qe7 {[%clk
0:01:30.7]} 24. Rde1 {[%clk 0:01:55]} 24... Nc4 {[%clk 0:01:20.8]} 25. Bc1
{[%clk 0:01:56]} 25... e5 {[%clk 0:01:20.5]} 26. Nf5 {[%clk 0:01:50]} 26... gxf5
{[%clk 0:01:21.2]} 27. exf5 {[%clk 0:01:51.9]} 27... Qf7 {[%clk 0:01:18.2]} 28.
Nh5 {[%clk 0:01:48.6]} 28... Bf6 {[%clk 0:01:18.7]} 29. b3 {[%clk 0:01:31]}
29... Na5 {[%clk 0:01:16.4]} 30. Re3 {[%clk 0:01:31]} 30... Nd7 {[%clk
0:01:15.2]} 31. Rg3+ {[%clk 0:01:31.5]} 31... Kh8 {[%clk 0:01:14.5]} 32. Nxf6
{[%clk 0:01:18.8]} 32... Nxf6 {[%clk 0:01:16.4]} 33. Bh6 {[%clk 0:01:11.3]}
33... Rg8 {[%clk 0:01:14.4]} 34. Rg6 {[%clk 0:01:12.4]} 34... Qd5 {[%clk
0:01:01]} 35. Bg5 {[%clk 0:01:04.5]} 35... Nd7 {[%clk 0:00:51.8]} 36. f6 {[%clk
0:01:02.9]} 36... Rxg6 {[%clk 0:00:50]} 37. Bxg6 {[%clk 0:00:52.8]} 37... Qxg2+
{[%clk 0:00:51]} 38. Qxg2 {[%clk 0:00:54.1]} 38... Bxg2 {[%clk 0:00:52.9]} 39.
Kxg2 {[%clk 0:00:55.2]} 39... hxg6 {[%clk 0:00:53.3]} 40. Bh6 {[%clk 0:00:53.6]}
40... Nf8 {[%clk 0:00:30.7]} 41. Rd1 {[%clk 0:00:46.5]} 41... Nb7 {[%clk
0:00:30]} 42. a4 {[%clk 0:00:44.2]} 42... Kh7 {[%clk 0:00:30.2]} 43. Bg5 {[%clk
0:00:36.6]} 43... Ne6 {[%clk 0:00:29.7]} 44. axb5 {[%clk 0:00:35.1]} 44... Nxg5
{[%clk 0:00:26.4]} 45. bxa6 {[%clk 0:00:36.3]} 45... Nc5 {[%clk 0:00:27.7]} 46.
Rxd6 {[%clk 0:00:35.4]} 46... Nge4 {[%clk 0:00:23.9]} 47. Rb6 {[%clk 0:00:33.8]}
47... Nxc3 {[%clk 0:00:16.2]} 48. b4 {[%clk 0:00:28.3]} 48... N5e4 {[%clk
0:00:10.5]} 49. Rb7+ {[%clk 0:00:26.4]} 49... Kh6 {[%clk 0:00:10.3]} 50. a7
{[%clk 0:00:27.5]} 50... Ra8 {[%clk 0:00:05.9]} 51. f7 {[%clk 0:00:28.1]} 51...
Nd6 {[%clk 0:00:06.5]} 52. Rb8 {[%clk 0:00:28.6]} 52... Nxf7 {[%clk 0:00:06.3]}
53. Rxa8 {[%clk 0:00:29.6]} 53... Nb5 {[%clk 0:00:08.2]} 54. Rh8+ {[%clk
0:00:30.3]} 54... Nxh8 {[%clk 0:00:09]} 55. a8=Q {[%clk 0:00:31.6]} 55... Nf7
{[%clk 0:00:10.9]} 56. Qd5 {[%clk 0:00:29.2]} 56... Nbd6 {[%clk 0:00:12.3]} 57.
b5 {[%clk 0:00:30]} 57... Kg7 {[%clk 0:00:14.2]} 58. b6 {[%clk 0:00:31.3]} 58...
Kf6 {[%clk 0:00:15.8]} 59. b7 {[%clk 0:00:32.4]} 59... Nxb7 {[%clk 0:00:17.4]}
60. Qxb7 {[%clk 0:00:33]} 60... Kf5 {[%clk 0:00:19.3]} 61. Qd7+ {[%clk
0:00:32.6]} 1-0

[Event "*** Titled Tuesday Blitz"]
[Site "Chess.com"]
[Date "2018.09.04"]
[Round "1"]
[White "Thjop"]
[Black "Cocaino74"]
[Result "1-0"]
[WhiteElo "2536"]
[BlackElo "2187"]
[TimeControl "180+2"]
[EndTime "13:44:37 PDT"]
[Termination "Thjop won by resignation"]

1. e4 {[%clk 0:03:01.9]} 1... c5 {[%clk 0:02:58.2]} 2. Nf3 {[%clk 0:03:01.7]}
2... Nc6 {[%clk 0:02:59.7]} 3. Nc3 {[%clk 0:02:59.5]} 3... g6 {[%clk 0:03:00.9]}
4. d4 {[%clk 0:02:52.5]} 4... cxd4 {[%clk 0:03:02.8]} 5. Nxd4 {[%clk 0:02:53.1]}
5... Bg7 {[%clk 0:03:04.2]} 6. Be3 {[%clk 0:02:53.4]} 6... Nf6 {[%clk
0:03:01.8]} 7. Bc4 {[%clk 0:02:52.9]} 7... O-O {[%clk 0:03:02.4]} 8. Bb3 {[%clk
0:02:53.3]} 8... Re8 {[%clk 0:03:01.9]} 9. O-O {[%clk 0:02:39.3]} 9... d6 {[%clk
0:03:00.2]} 10. h3 {[%clk 0:02:39.4]} 10... Na5 {[%clk 0:03:01.2]} 11. Qd2
{[%clk 0:02:24.3]} 11... b6 {[%clk 0:02:59.4]} 12. Bh6 {[%clk 0:02:16.1]} 12...
Bb7 {[%clk 0:02:51.3]} 13. Bxg7 {[%clk 0:02:14.9]} 13... Kxg7 {[%clk 0:02:53.2]}
14. Rfe1 {[%clk 0:02:02.6]} 14... a6 {[%clk 0:02:51.6]} 15. Rad1 {[%clk
0:01:45.1]} 15... b5 {[%clk 0:02:46.4]} 16. Qg5 {[%clk 0:01:43.3]} 16... Nxb3
{[%clk 0:02:41.2]} 17. axb3 {[%clk 0:01:43.4]} 17... Qc7 {[%clk 0:02:16.5]} 18.
Nf5+ {[%clk 0:01:39.1]} 18... Kh8 {[%clk 0:02:05.1]} 19. Nxd6 {[%clk 0:01:36.7]}
19... Rf8 {[%clk 0:01:29.1]} 20. Nxb7 {[%clk 0:01:34.5]} 20... Qxb7 {[%clk
0:01:29.7]} 21. Nd5 {[%clk 0:01:28.3]} 21... Nxd5 {[%clk 0:01:28.5]} 22. exd5
{[%clk 0:01:28.7]} 22... f6 {[%clk 0:01:23.8]} 23. Qe3 {[%clk 0:01:22.8]} 23...
Rfe8 {[%clk 0:01:18.7]} 24. c3 {[%clk 0:01:11.7]} 24... Qd7 {[%clk 0:01:14.4]}
25. b4 {[%clk 0:01:07.6]} 25... Rad8 {[%clk 0:01:03.5]} 26. Qe6 {[%clk
0:01:02.3]} 26... Qd6 {[%clk 0:00:57.5]} 27. Re3 {[%clk 0:00:51.3]} 27... Kg7
{[%clk 0:00:56.6]} 28. Rd4 {[%clk 0:00:45.5]} 28... Qxe6 {[%clk 0:00:48.6]} 29.
Rxe6 {[%clk 0:00:44.9]} 29... Rd6 {[%clk 0:00:49.7]} 30. Rxd6 {[%clk 0:00:45.4]}
30... exd6 {[%clk 0:00:51.6]} 31. Kf1 {[%clk 0:00:46.6]} 31... f5 {[%clk
0:00:47.7]} 32. Rd1 {[%clk 0:00:44]} 32... Kf6 {[%clk 0:00:45.2]} 33. f4 {[%clk
0:00:44.4]} 33... h6 {[%clk 0:00:40.5]} 34. Re1 {[%clk 0:00:43.8]} 34... Rxe1+
{[%clk 0:00:37.9]} 35. Kxe1 {[%clk 0:00:45.7]} 35... g5 {[%clk 0:00:39.1]} 36.
g3 {[%clk 0:00:45.5]} 36... h5 {[%clk 0:00:38]} 37. h4 {[%clk 0:00:44.6]} 37...
gxh4 {[%clk 0:00:33.3]} 38. gxh4 {[%clk 0:00:45.2]} 38... Ke7 {[%clk 0:00:33.3]}
39. Kd2 {[%clk 0:00:44.6]} 39... Kd7 {[%clk 0:00:35.2]} 40. Kd3 {[%clk
0:00:45.7]} 40... Kc7 {[%clk 0:00:36.6]} 41. Kd4 {[%clk 0:00:46.4]} 41... Kb7
{[%clk 0:00:35.1]} 42. c4 {[%clk 0:00:30.8]} 42... bxc4 {[%clk 0:00:27.7]} 43.
Kxc4 {[%clk 0:00:31.7]} 43... Kb6 {[%clk 0:00:26]} 44. b3 {[%clk 0:00:31.7]}
44... a5 {[%clk 0:00:25.3]} 45. bxa5+ {[%clk 0:00:31.3]} 45... Kxa5 {[%clk
0:00:26.5]} 46. b4+ {[%clk 0:00:29.3]} 46... Kb6 {[%clk 0:00:19.7]} 47. Kc3
{[%clk 0:00:24.8]} 47... Ka6 {[%clk 0:00:18.3]} 48. Kb2 {[%clk 0:00:23.6]} 48...
Kb6 {[%clk 0:00:18.8]} 49. Ka3 {[%clk 0:00:24.8]} 49... Kb5 {[%clk 0:00:11.8]}
50. Kb3 {[%clk 0:00:25.2]} 50... Ka6 {[%clk 0:00:13.4]} 51. Ka4 {[%clk
0:00:21.9]} 51... Kb6 {[%clk 0:00:14.8]} 52. b5 {[%clk 0:00:23.2]} 52... Kc5
{[%clk 0:00:15]} 53. Ka5 {[%clk 0:00:24.5]} 53... Kxd5 {[%clk 0:00:16.2]} 54. b6
{[%clk 0:00:25.6]} 54... Kc6 {[%clk 0:00:13.6]} 55. Ka6 {[%clk 0:00:26.3]} 55...
d5 {[%clk 0:00:15]} 56. b7 {[%clk 0:00:27.2]} 56... d4 {[%clk 0:00:15.9]} 57.
b8=Q {[%clk 0:00:27.5]} 57... d3 {[%clk 0:00:17.2]} 1-0

[Event "*** Titled Tuesday Blitz"]
[Site "Chess.com"]
[Date "2018.09.04"]
[Round "1"]
[White "Nakachuk"]
[Black "Superfelix"]
[Result "1-0"]
[WhiteElo "2707"]
[BlackElo "2358"]
[TimeControl "180+2"]
[EndTime "13:44:44 PDT"]
[Termination "Nakachuk won by resignation"]

1. d4 {[%clk 0:03:01.7]} 1... Nf6 {[%clk 0:02:59.4]} 2. Bf4 {[%clk 0:03:02]}
2... g6 {[%clk 0:03:00.2]} 3. Nc3 {[%clk 0:03:02.2]} 3... d5 {[%clk 0:03:00]} 4.
e3 {[%clk 0:03:03.1]} 4... Bg7 {[%clk 0:02:59.2]} 5. h4 {[%clk 0:03:04.4]} 5...
h5 {[%clk 0:02:59.7]} 6. Nf3 {[%clk 0:03:00.7]} 6... Bg4 {[%clk 0:03:00.4]} 7.
Be2 {[%clk 0:03:01.3]} 7... Bxf3 {[%clk 0:02:59.6]} 8. Bxf3 {[%clk 0:03:03.2]}
8... c6 {[%clk 0:03:00.7]} 9. Qd2 {[%clk 0:03:01.5]} 9... Nbd7 {[%clk
0:03:01.4]} 10. O-O-O {[%clk 0:03:02.6]} 10... Qa5 {[%clk 0:02:58.1]} 11. Kb1
{[%clk 0:03:02]} 11... Qb6 {[%clk 0:02:46.6]} 12. Be2 {[%clk 0:02:52.6]} 12...
a5 {[%clk 0:02:44.9]} 13. f3 {[%clk 0:02:51.3]} 13... a4 {[%clk 0:02:42.8]} 14.
a3 {[%clk 0:02:51.5]} 14... Qa5 {[%clk 0:02:43.8]} 15. g4 {[%clk 0:02:51]} 15...
b5 {[%clk 0:02:40.9]} 16. g5 {[%clk 0:02:46.6]} 16... Nh7 {[%clk 0:02:40.7]} 17.
e4 {[%clk 0:02:47.9]} 17... e6 {[%clk 0:02:30.4]} 18. exd5 {[%clk 0:02:43.7]}
18... exd5 {[%clk 0:02:31.4]} 19. Bd6 {[%clk 0:02:42.1]} 19... Bf8 {[%clk
0:02:29.7]} 20. Qe3+ {[%clk 0:02:38.6]} 20... Kd8 {[%clk 0:02:28.1]} 21. Bxf8
{[%clk 0:02:29.3]} 21... Rxf8 {[%clk 0:02:27.9]} 22. Na2 {[%clk 0:02:26.4]}
22... Re8 {[%clk 0:02:24.1]} 23. Qf2 {[%clk 0:02:27.2]} 23... Nhf8 {[%clk
0:02:23.5]} 24. Rhe1 {[%clk 0:02:22.7]} 24... Ne6 {[%clk 0:02:23.6]} 25. Bf1
{[%clk 0:02:22.8]} 25... Qc7 {[%clk 0:02:24]} 26. Nb4 {[%clk 0:02:19.3]} 26...
Qd6 {[%clk 0:02:21.6]} 27. Re3 {[%clk 0:02:13.6]} 27... Kc7 {[%clk 0:02:21.5]}
28. Rc3 {[%clk 0:02:14.5]} 28... Nb8 {[%clk 0:02:04.1]} 29. Bxb5 {[%clk
0:02:13.8]} 29... Nd8 {[%clk 0:02:05.2]} 30. Bf1 {[%clk 0:02:02.8]} 30... Kb6
{[%clk 0:02:05.7]} 31. Nd3 {[%clk 0:01:54.6]} 31... Ra5 {[%clk 0:02:05.3]} 32.
Rc5 {[%clk 0:01:54.3]} 32... Nb7 {[%clk 0:02:04.7]} 33. Qd2 {[%clk 0:01:51]}
33... Nd7 {[%clk 0:01:57.8]} 34. Qb4+ {[%clk 0:01:50.4]} 34... Rb5 {[%clk
0:01:58.9]} 35. Rxb5+ {[%clk 0:01:40.8]} 35... cxb5 {[%clk 0:02:00.8]} 36. Qd2
{[%clk 0:01:41.6]} 36... Qg3 {[%clk 0:01:55.7]} 37. Nb4 {[%clk 0:01:39.7]} 37...
Qxh4 {[%clk 0:01:50.3]} 38. Nxd5+ {[%clk 0:01:39.9]} 38... Ka7 {[%clk
0:01:51.4]} 39. Nc7 {[%clk 0:01:39.2]} 39... Rc8 {[%clk 0:01:36.4]} 40. Nxb5+
{[%clk 0:01:39.7]} 40... Kb8 {[%clk 0:01:37.6]} 41. Qb4 {[%clk 0:01:38.4]} 41...
Qxg5 {[%clk 0:01:34.3]} 42. Qxa4 {[%clk 0:01:33.6]} 42... Rc6 {[%clk 0:01:29.6]}
43. Qa7+ {[%clk 0:01:32.4]} 43... Kc8 {[%clk 0:01:29.8]} 44. Qa8+ {[%clk
0:01:34.3]} 44... Nb8 {[%clk 0:01:30.4]} 45. Na7+ {[%clk 0:01:35.7]} 45... Kc7
{[%clk 0:01:31.6]} 46. Nxc6 {[%clk 0:01:37.5]} 46... Nxc6 {[%clk 0:01:32.8]} 47.
d5 {[%clk 0:01:35.3]} 47... Ne5 {[%clk 0:01:31.6]} 48. d6+ {[%clk 0:01:33]}
48... Nxd6 {[%clk 0:01:30]} 49. Qa5+ {[%clk 0:01:33.6]} 49... Kd7 {[%clk
0:01:31.2]} 50. Qd5 {[%clk 0:01:29.9]} 50... Qe7 {[%clk 0:01:21.2]} 51. Bh3+
{[%clk 0:01:19.3]} 51... f5 {[%clk 0:01:21]} 52. Re1 {[%clk 0:01:20.1]} 52...
Qh4 {[%clk 0:00:54.7]} 53. Qxe5 {[%clk 0:01:10.4]} 53... Qxh3 {[%clk 0:00:55]}
54. Qe6+ {[%clk 0:01:10.5]} 54... Kc6 {[%clk 0:00:56.3]} 55. Qxg6 {[%clk
0:00:57]} 55... Qxf3 {[%clk 0:00:57.3]} 56. a4 {[%clk 0:00:48.1]} 56... h4
{[%clk 0:00:57.7]} 57. b3 {[%clk 0:00:42.4]} 57... h3 {[%clk 0:00:58.6]} 58. Qh6
{[%clk 0:00:41.9]} 58... Kd5 {[%clk 0:00:55.6]} 59. Qe6+ {[%clk 0:00:36.7]}
59... Kc6 {[%clk 0:00:56.1]} 60. Qe2 {[%clk 0:00:35.9]} 60... Qc3 {[%clk
0:00:34.5]} 61. Rd1 {[%clk 0:00:33.6]} 61... Kc7 {[%clk 0:00:25.9]} 62. Qe7+
{[%clk 0:00:33.6]} 1-0